Cogmind - Beta 16 @@@ ROGUE MODE // 2026.01.16 @ 14:32:00 Player: noklam Result: Destroyed by SG-IXX(R) with Subdweller Laser Performance ------------- Evolutions (0) 0 Regions Visited (2) 400 Robots Destroyed (7) 35 Value Destroyed (244) 244 Prototype IDs (0) 0 Alien Tech Used (0) 0 Bonus (0) 0 TOTAL SCORE: 679 Bonus ------- None Cogmind --------- Core Integrity 0/250 Matter 292/300 Energy 200/200 System Corruption 0% Temperature Cool (6) Movement Core (200) Ox3 Location -10/Subcaves Parts ------- > --- POWER (1) -------- Subdweller Power Source > --- PROPULSION (2) --- (None) > --- UTILITY (2) ------ Subdweller Optics > --- WEAPON (2) ------- Grenade Launcher > --- INVENTORY (5) ---- Datajack Peak State ------------ > --- POWER ------------ Light Ion Engine > --- PROPULSION ------- Aluminum Leg Aluminum Leg > --- UTILITY ---------- Scrap Shield > --- WEAPON ----------- Medium Laser Light Cannon > --- INVENTORY -------- Hover Unit Grenade Launcher Datajack [Rating: 9] Favorites ----------- Power Light Ion Engine Engine Light Ion Engine Propulsion Aluminum Leg Leg Aluminum Leg Hover Unit Hover Unit Utility Small Storage Unit Device Sensor Array Storage Small Storage Unit Protection Scrap Shield Weapon Medium Laser Energy Gun Medium Laser Ballistic Gun Light Assault Rifle Ballistic Cannon Light Cannon Launcher Grenade Launcher Special Melee Weapon Datajack Build | -11 -10 -10 ------- Run | Yrd Mat Sub Slots Evolved . | . . . Power . | . . . Propulsion . | . . . Utility . | . . . Weapon . | . . . Parts Attached 18 | 7 3 8 Power 3 | 1 . 2 Engine 3 | 1 . 2 Core . | . . . Reactor . | . . . Propulsion 3 | 2 . 1 Treads . | . . . Leg 2 | 2 . . Wheel . | . . . Hover 1 | . . 1 Flight . | . . . Utility 5 | 1 2 2 Device 3 | . 2 1 Storage 1 | 1 . . Processor . | . . . Hackware . | . . . Protection 1 | . . 1 Artifact . | . . . Weapon 7 | 3 1 3 Energy Gun 2 | 2 . . Energy Cannon . | . . . Ballistic Gun 1 | 1 . . Ballistic Cannon 2 | . . 2 Launcher 1 | . . 1 Special Weapon . | . . . Impact Weapon . | . . . Slashing Weapon . | . . . Piercing Weapon . | . . . Special Melee Weapon 1 | . 1 . Unidentified Prototypes . | . . . Parts Lost 7 | . . 7 Power 1 | . . 1 Propulsion 3 | . . 3 Utility 1 | . . 1 Weapon 2 | . . 2 Highest Loss Streak 3 | . . 3 To Critical Strikes . | . . . Average Backups 4 | 1 5 3 Power . | . 1 . Propulsion . | . . . Utility . | . . . Weapon 1 | . 2 1 Tool/Special . | . . . Unused Backups . | . . . Power . | . . . Propulsion . | . . . Utility . | . . . Weapon . | . . . Tool/Special . | . . . Average Slot Usage (%) 76 | . 95 63 Engine 12 | . 14 10 Leg 18 | . 28 11 Hover 1 | . . 2 Device 9 | . 9 10 Storage 8 | . 14 4 Energy Gun 17 | . 26 10 Ballistic Cannon 6 | . . 10 Peak Build Rating 9 | 6 7 9 Average Rating 6 | 4 6 5 On Entrance 4 | . 6 7 Avg Prop Armor Cover (%) 10 | . . 10 Naked Turns . | . . . Heaviest Build 26 | 11 13 26 Greatest Support 20 | 20 20 20 Greatest Overweight (x) 4 | 1 . 4 Average Overweight (x) . | . . 1 Largest Inventory Capacity 8 | 8 8 8 Average Capacity 6 | 7 8 5 Most Carried 8 | 2 7 8 Average Carried 4 | 1 5 4 Final Capacity 8 | 8 8 5 Final Carried 7 | 2 7 1 Class Distribution -------------------- 100% | Mutant Dominant Class ---------------- Mutant | -10/Materials Mutant | -10/Subcaves Resources | -11 -10 -10 ----------- Run | Yrd Mat Sub Matter Collected 439 | 216 57 166 Remotely . | . . . Salvage Created 243 | . 93 150 Parts 13 | . 4 9 Haulers Intercepted . | . . . Recyclers Shooed . | . . . Parts Field Recycled . | . . . Retrieved Matter . | . . . Parts Self-Destructed 6 | . . 6 Prevented . | . . . Parts Restored . | . . . Kills | -11 -10 -10 ------- Run | Yrd Mat Sub Combat Hostiles Destroyed 6 | . 2 4 Guns 3 | . 2 1 Cannons 3 | . . 3 Classes Destroyed 3 | . 2 1 Watcher 1 | . 1 . Grunt 2 | . 2 . Subdweller 4 | . . 4 Best Kill Streak 2 | . 2 2 Combat Bots Only 2 | . 2 2 Max Kills in Single Turn 1 | . 1 1 Gunslinging . | . . . Exploded . | . . . Melee . | . . . Uniques/NPCs Destroyed . | . . . Combat | -11 -10 -10 -------- Run | Yrd Mat Sub Hostile Shots Fired 76 | . 10 66 Missed 33 | . 3 30 Hits 43 | . 7 36 Projectile 43 | . 7 36 AOE 3 | . . 3 Damage Taken 1151 | . 77 1074 Core 259 | . 23 236 Absorbed by Shields . | . . . Core Remaining (%) 100 | 100 . . Volleys Fired 23 | . 7 16 Largest 2 | . 2 2 Hottest 90 | . 90 90 Shots Fired 43 | . 14 29 Gun 25 | . 14 11 Cannon 18 | . . 18 Launcher . | . . . Special . | . . . Kinetic 18 | . . 18 Thermal 25 | . 14 11 Explosive . | . . . Electromagnetic . | . . . Robot Hit Streak 8 | . 5 8 Robot Miss Streak 2 | . 1 2 Penetration Max . | . . . Secondary Targets . | . . . Shots Hit Robots 33 | . 14 19 Core Hits 17 | . 5 12 Critical Kills . | . . . Critical Parts Destroyed . | . . . Critical Strikes 4 | . 2 2 Burn 3 | . 2 1 Blast 1 | . . 1 Melee Attacks 3 | . 3 . Impact . | . . . Slashing . | . . . Piercing . | . . . Sneak Attacks 2 | . 2 . Combat Hostiles . | . . . Follow-up Attacks . | . . . Damage Inflicted 465 | . 128 337 Guns 211 | . 128 83 Cannons 254 | . . 254 Explosions . | . . . Melee . | . . . Ramming . | . . . Kinetic 254 | . . 254 Thermal 211 | . 128 83 Explosive . | . . . Electromagnetic . | . . . Impact . | . . . Slashing . | . . . Piercing . | . . . Highest Corruption . | . . . Average Corruption . | . . . Corruption Purged . | . . . Corruption Blocked . | . . . Overload Shots . | . . . Overflow Damage . | . . . Projectiles . | . . . Explosions . | . . . Melee . | . . . Knockbacks 2 | . . 2 Impact . | . . . Kinetic 2 | . . 2 Secondary . | . . . Self-Inflicted Damage . | . . . Shots . | . . . Rammed . | . . . Targets Rammed . | . . . Kicked . | . . . Crushed . | . . . Highest Temperature 174 | . 174 8 Average Temperature 71 | . 73 8 Received Heat Transfer 210 | . 42 168 Siege Activations . | . . . Martial Activations . | . . . Shielding Activations . | . . . Robots Disrupted . | . . . Combat Hostiles . | . . . Robots Corrupted . | . . . Combat Hostiles . | . . . Parts Fried . | . . . Impact Corruptions . | . . . Robots Melted . | . . . Combat Hostiles . | . . . Parts Melted 3 | . 3 . Heat Transferred 804 | . 495 309 Parts Sabotaged . | . . . Parts Stolen . | . . . Parts Stripped . | . . . Power Chain Reactions . | . . . Alert | -11 -10 -10 ------- Run | Yrd Mat Sub Maximum Alert Level . | . . . Low Security (%) 100 | 100 100 . Level 1 . | . . . Level 2 . | . . . Level 3 . | . . . Level 4 . | . . . Level 5 . | . . . High Security . | . . . Max Security . | . . . Peak Influence 40 | . 40 . Initial . | . . . Average 4 | . 5 . Influence Increases 72 | . 72 . Destroy 0b10 Robot/C 40 | . 40 . Destroy 0b10 Robot/NC 5 | . 5 . Destroy Leader 12 | . 12 . Lose Combat Pursuer 15 | . 15 . Influence Decreases 72 | . 72 . Time Decay 72 | . 72 . Squads Dispatched 1 | . 1 . Investigation . | . . . Extermination . | . . . Reinforcement 1 | . 1 . Assault . | . . . Garrison . | . . . Intercept . | . . . Searches Triggered . | . . . Construction Impeded . | . . . Haulers Reinforced . | . . . Active Scanning Responses . | . . . Cargo Convoy Interrupts . | . . . Stealth | -11 -10 -10 --------- Run | Yrd Mat Sub Distress Signals 1 | . 1 . Communications Jammed . | . . . Distress Signals . | . . . Times Spotted 23 | . 6 17 Peak Tracking Total 7 | . 2 7 Tactical Retreats 2 | . 1 1 Traps | -11 -10 -10 ------- Run | Yrd Mat Sub Traps Triggered 4 | . . 4 Indirectly . | . . . Trap Hack Attempts . | . . . Triggered . | . . . Disarmed . | . . . Reprogrammed 4 | . 4 . Reused . | . . . Traps Extracted . | . . . Installed . | . . . Triggered . | . . . Machines | -11 -10 -10 ---------- Run | Yrd Mat Sub Machines Disabled . | . . . Max in Single Turn . | . . . Machines Repaired . | . . . Machines Dismantled . | . . . Machines Sabotaged . | . . . Overloaded Fab Kills . | . . . Hacking | -11 -10 -10 --------- Run | Yrd Mat Sub Machines Accessed 3 | . 1 2 Terminals 1 | . 1 . Fabricators . | . . . Repair Stations . | . . . Recycling Units . | . . . Scanalyzers . | . . . Garrison Access . | . . . Total Hacks 6 | . 3 3 Successful 5 | . 2 3 Failed 1 | . 1 . Catastrophic . | . . . Database Lockouts . | . . . Manual . | . . . Terminals 3 | . 3 . Fabricators . | . . . Repair Stations . | . . . Recycling Units . | . . . Scanalyzers . | . . . Garrison Access . | . . . Terminal Hacks 5 | . 2 3 Record 1 | . . 1 Open Door 1 | . . 1 Alert Level 1 | . 1 . Reprogram Traps 1 | . 1 . Release Object 1 | . . 1 Fabricator Hacks . | . . . Repair Station Hacks . | . . . Recycling Unit Hacks . | . . . Scanalyzer . | . . . Garrison Access Hacks . | . . . Unauthorized Hacks . | . . . Terminals . | . . . Fabricators . | . . . Repair Stations . | . . . Recycling Units . | . . . Scanalyzers . | . . . Garrison Access . | . . . Data Cores Recovered . | . . . Used . | . . . Hacking Detections 1 | . 1 . Full Trace Events . | . . . Feedback Events . | . . . Feedback Blocked . | . . . Robot Schematics Acquired . | . . . Robots Built . | . . . Authchips . | . . . Time . | . . . Total Robot Build Rating . | . . . Part Schematics Acquired . | . . . Parts Built . | . . . Authchips . | . . . Time . | . . . Total Part Build Rating . | . . . Part Studies Acquired . | . . . Parts Repaired . | . . . Time . | . . . Parts Recycled . | . . . Recycled Matter . | . . . Retrieved Matter . | . . . Retrieved Components . | . . . Parts Scanalyzed . | . . . Part Schematics Acquired . | . . . Parts Damaged . | . . . Bothacking | -11 -10 -10 ------------ Run | Yrd Mat Sub Used RIF Installer . | . . . Robots Hacked 1 | . 1 . Non-combat 1 | . 1 . Combat . | . . . Robot Hacks Applied 2 | . 2 . parse_system 1 | . 1 . no_distress 1 | . 1 . Relay Couplers Released . | . . . Fabnet Peak Effective % . | . . . Robots Rewired . | . . . Allies Hacked . | . . . Hacks Repelled . | . . . Allies | -11 -10 -10 -------- Run | Yrd Mat Sub Total Allies . | . . . Largest Group . | . . . Highest-Rated Group . | . . . Highest-Rated Ally . | . . . Total Orders . | . . . Ally Attacks . | . . . Total Damage . | . . . Kills . | . . . Allies Corrupted . | . . . Allies Melted . | . . . Intel | -11 -10 -10 ------- Run | Yrd Mat Sub Active Infowar (turns) 697 | . 268 429 Optics 246 | . . 246 Sensors 304 | . 121 183 ECM 147 | . 147 . Robot Analysis Total . | . . . Derelict Logs Recovered . | . . . Drone Launches . | . . . Drone Recoveries . | . . . Exploration | -11 -10 -10 ------------- Run | Yrd Mat Sub Turns Passed 1054 | 60 389 605 Spaces Moved 721 | 41 290 390 Core 135 | 5 . 130 Treads . | . . . Legs 454 | 36 290 128 Wheels . | . . . Hover 132 | . . 132 Flight . | . . . Fastest Speed 50 | 50 120 50 Average Speed 126 | 120 120 132 Slowest Speed 260 | 190 120 260 Overloaded Moves . | . . . Propulsion Burnouts . | . . . Robots Hopped . | . . . Potential Cave-ins . | . . . Cave-ins Triggered . | . . . Exploration Rate (%) 20 | 4 36 22 Regions Visited 2 Branch Regions 1 Pre-discovered Areas . | . . . Known Exits Taken . | . . . Unknown Exits Taken 2 | 1 1 . Scrap Searched . | . . . Spaces Dug . | . . . Terrain Destroyed . | . . . Melee . | . . . Projectile . | . . . AOE . | . . . Terrain Rammed . | . . . Walls Destroyed . | . . . Machines Disabled . | . . . Actions | -11 -10 -10 --------- Run | Yrd Mat Sub Total 806 | 49 314 443 Wait 23 | . 4 19 Move 719 | 40 289 390 Hop . | . . . Pick Up 9 | 1 6 2 Fast Attach 10 | 7 1 2 Attach 3 | . . 3 Detach 1 | 1 . . Swap 8 | . 3 5 Drop 7 | . 1 6 Fire 23 | . 7 16 Melee 3 | . 3 . Ram . | . . . Kick . | . . . Crush . | . . . Escape Stasis . | . . . Rewire . | . . . Trap . | . . . Miscellaneous . | . . . Route ------- -11/Scrapyard -10/Materials (discovered 2 exits: [*Mat] / *Sub) -10/Subcaves History --------- Turn | Location | Event 4 | -11/Scrapyard | Discovered new exit (range 15) 61 | -11/Scrapyard | Entered Materials 314 | -10/Materials | Build established: Mutant 369 | -10/Materials | Discovered new exit (range 6) 388 | -10/Materials | Discovered new exit (range 3) 450 | -10/Materials | Entered Subcaves 451 | -10/Subcaves | Approached by a straggling Scientist 612 | -10/Subcaves | Ambushed by swarm of Subdwellers 618 | -10/Subcaves | Ambushed by Subdwellers from Twisted Machinery 672 | -10/Subcaves | Lost 4 allies 713 | -10/Subcaves | Lost 3 parts (1p1n1u) 778 | -10/Subcaves | Core integrity fell below 50% 893 | -10/Subcaves | Core integrity fell below 20% 1055 | -10/Subcaves | Destroyed by SG-IXX(R) with Subdweller Laser Last Messages --------------- 00790_ Acquired 42 matter. 00792_ Acquired Sub. Power Source. 00793_ Acquired 43 matter. 00798_ Acquired 11 matter. 00807_ Dropped Scrap Shield Fragment. 00809_ Acquired Sub. Optics. 00876_ Triggered Piercing Trap. 00876_ Spikes shoot up from the floor. 00876_ Critical hit (Impale). 00892_ Triggered Piercing Trap. 00892_ Spikes shoot up from the floor. 00892_ Critical hit (Impale). 00983_ Subatomizers dissect the Tech Extrapolator. 01003_ Tech Extrapolator violently self-destructs. 01004_ Acquired 15 matter. 01043_ Acquired 1 matter. 01048_ Lgt. Cannon destroyed. 01054_ Acquired 7 matter. Map ----- +----------------------------------------------------+ | ???????????????????????????????????????????? | | ???????????????????????????????????????????? | | ???????????????????????????????????????????? | | ???????????????????????????????????????????? | | ???????????????????????????????????????????? | | ???????????????????????????????????????????? | | ???????????????????????????????????????????? | | ???????????????????????????????????????????? | | ???????????????????????????????????????????? | | ???????????????????????????????????????????? | | ####???????????????????????????????????????? | | #???????????????????????????????????????? | | #????????????###????????????????????????? | | ##?????????## ##???????????????????????? | | # ##???????# #???????????????????????? | | # #???????# #?####??????????????????? | | ####???## ### ####???????????????? | | ?# ## ##??# # #???????????????? | | ##??# ##?# ## #???????????????? | | ##?# ### ### #???????????????? | | #?# ## ##??????????????? | | #### ;#??????????????? | | ## #??????????????? | | ## #??????????????? | | ####### #??????????????? | | ## ## ##????##@ #??????????????? | | #### ### ###### !% #??????????????? | | ???## #?# %&##??????????????? | | ????# ##?## ## #???????????????? | | ????# ##???#### #### ##??????????????? | | ????## ##???????####### RR #??????????????? | | ?????###?????????????# ! #??????????????? | | ?????????????????????# ][!]#??????????????? | | ?????????????????????## &%!!#??????????????? | | ??????????????????????# * ###??????????????? | | ??????????????????????# %###??????????????? | | ??????????????????????#[%! ##?????????????? | | ??????????????????????# % #?????????????? | | ?????????????????????## % ###?????????????? | | ????????????????????#" %= ##???????????????? | | ????????????????????#""[!%#????????????????? | | ????????????????????# %* #????????????????? | | ????????????????????# #????????????????? | | ????????????????????## *%&#????????????????? | | ?????????????????????## = #????????????????? | | ??????????????????????##!=##???????????????? | | ???????????????????????#=% #???????????????? | | ?????????????????#######%! #???????????????? | | ?????????????????#" *! ##??????????????? | | ????????????????## ##?????????????? | +----------------------------------------------------+ Best States ------------- Heat Dissipation 25 Energy Generation 15 Energy Capacity 200 Matter Stores 300 Matter Capacity 300 Sight Range 21 Robot Scan Range 14 Terrain Scan Density 10 ECM Strength 1 Armor Coverage 800 Evasion (%) 55 Item Schematics ----------------- None Robot Schematics ------------------ None Fabricated ------------ Nothing Repaired ---------- Nothing Studied --------- None Alien Tech Used ----------------- None Achievements -------------- Junior Dev Challenges ------------ None Game ------ Seed AssemblyBlanketBeam Manual? 0 Play Time 00:14:30 Cumulative 18.9 hours Start 2026.01.16 @ 14:20:39 End 2026.01.16 @ 14:32:00 Sessions 1 Manual Loads 0 Difficulty Rogue Special Mode None Game No. 32 Rogue 32 Adventurer 0 Explorer 0 Win Type - Total 0 Types 0/0/0/0/0/0/0/0/0/0 Lore% 11 Gallery% 20 Achievement% 14 Wizard Run 0 Options --------- Layout 1 ASCII 0 Keyboard 1 Movement Vi Keybinds 0 Fullscreen 1 Font 32/SmallcapsGlow Map View 50x35 Zoom Use 0% Tactical HUD 1 Map Filters NONE Filters NONE Steam 1 RUN: 7ed9f542-4fcf-49e1-a6fb-38fb0f1c1f67